bitfinex/quotes_ETHUSD_20241122
["timestamp","ask_amount","ask_price","bid_price","bid_amount"]
[1732251326743,0.18399277,3390.3,3389.8,0.56482485]
[1732251326979,0.18399277,3390.3,3389.8,0.56482542]
[1732251327205,0.45422439,3390.7,3390.0,0.55]
[1732251327383,0.45422439,3390.8,3390.2,0.8079]
[1732251327685,0.45422439,3391.0,3390.3,0.564817]
[1732251327888,0.18399277,3390.9,3390.3,0.564817]
[1732251328071,0.63821716,3390.9,3390.3,0.564817]
[1732251328241,0.18399277,3390.8,3390.3,0.564817]
[1732251328454,0.18399277,3390.8,3390.3,0.55]
[1732251328877,0.18391698,3390.8,3390.2,0.8079]
[1732251329401,0.18391698,3390.7,3390.2,0.8079]
[1732251329979,0.18391698,3390.8,3390.2,0.8079]
[1732251330281,0.18391698,3390.7,3390.2,0.8079]
[1732251330488,0.18391698,3390.6,3390.2,0.8079]
[1732251330791,0.18391698,3390.7,3390.2,0.8079]
[1732251330993,0.18391698,3390.6,3390.2,0.8079]
[1732251331191,0.18391698,3390.7,3390.2,0.8079]
[1732251331362,0.18391698,3390.6,3390.2,0.8079]
[1732251331567,0.18391698,3390.5,3390.2,0.8079]
[1732251331770,0.18391698,3390.7,3390.2,0.8079]
[1732251331986,0.18391698,3390.6,3390.2,0.8079]
[1732251332302,0.04686247,3391.5,3390.2,0.8079]
[1732251332303,0.18391698,3390.5,3390.2,0.8079]
[1732251332470,0.18391698,3390.4,3390.2,0.8079]
[1732251332653,0.18391698,3390.6,3390.2,0.8079]
[1732251332858,0.18391698,3390.5,3390.2,0.8079]
[1732251333086,0.18391698,3390.6,3390.2,0.8079]
[1732251333313,0.18391698,3390.5,3390.2,0.8079]
[1732251333454,0.18391698,3390.4,3390.3,0.56482101]
[1732251333656,0.18391698,3390.6,3390.3,0.55]
[1732251333861,0.4527897,3390.8,3390.3,0.56481738]
[1732251334167,0.18391207,3390.7,3390.3,0.55]
[1732251334353,0.4527897,3390.8,3390.3,0.55]
[1732251334354,0.5097473,3390.6,3390.3,0.55]
[1732251334549,0.4527897,3390.8,3390.6,0.2931]
[1732251335302,0.4527897,3391.0,3390.6,0.2931]
[1732251335665,0.4527897,3391.0,3390.3,0.2931]
[1732251335853,0.4527897,3391.0,3390.3,3.2931]
[1732251336058,0.4527897,3391.0,3390.5,0.2931]
[1732251336295,0.27206404,3390.9,3390.5,0.2931]
[1732251336515,0.03686418,3392.0,3390.7,0.2931]
[1732251336516,0.27206404,3390.8,3390.7,0.2931]
[1732251337667,0.27206404,3390.8,3390.7,0.85791178]
[1732251337869,0.27206404,3390.8,3390.7,1.02638296]
[1732251338703,0.27206404,3390.8,3390.7,1.85318296]
[1732251339068,0.27206404,3391.5,3390.7,1.85318296]
[1732251339275,0.04685663,3392.4,3390.9,0.8431]
[1732251339458,0.45394769,3391.9,3391.0,0.01480033]
[1732251339655,0.27236861,3391.8,3391.0,0.01480033]
[1732251339856,0.27236861,3391.7,3391.0,0.01480033]
[1732251340099,0.27236861,3391.6,3391.1,0.73834236]
[1732251340400,0.27236861,3391.5,3390.7,0.8268]
[1732251340582,0.45394769,3391.8,3390.7,0.8268]
[1732251340583,0.27236861,3391.4,3390.7,3.8268]
[1732251340759,0.27236861,3391.3,3390.8,0.40876033]
[1732251341096,0.27236861,3391.2,3390.7,0.8268]
[1732251341397,0.27236861,3391.1,3390.7,3.8268]
[1732251341595,0.27236861,3391.0,3390.8,0.40876033]
[1732251341761,0.27236861,3390.9,3390.8,0.40876033]
[1732251341960,0.27236861,3390.9,3390.8,0.01480131]
[1732251342158,0.45394769,3391.7,3390.9,0.7915]
[1732251342487,0.45394769,3392.3,3391.2,0.55]
[1732251342698,0.01,3392.7,3391.4,0.7915]
[1732251342699,0.45394769,3392.4,3391.4,0.7915]
[1732251342867,0.63830565,3392.3,3391.5,0.01479287]
[1732251343204,0.45447003,3392.4,3391.5,0.56479287]
[1732251343360,0.63831218,3392.5,3391.6,0.94834185]
[1732251343560,0.18384215,3392.4,3391.7,0.01478792]
[1732251344301,0.02,3393.1,3391.7,0.01478792]
[1732251344302,0.45447003,3392.7,3391.7,0.01478792]
[1732251344502,0.4363359,3392.6,3391.7,0.01478792]
[1732251344810,0.01,3393.3,3391.8,0.7915]
[1732251344811,0.4363359,3392.5,3391.8,0.7915]
[1732251344962,0.4363359,3392.8,3391.9,0.01477516]
[1732251345166,0.4362891,3392.9,3392.1,0.2931]
[1732251345468,0.89075913,3393.2,3392.1,0.30787321]
[1732251345670,0.4831305,3393.1,3392.1,0.2931]
[1732251345972,0.4831305,3393.1,3392.2,0.2931]
[1732251345973,0.02,3392.7,3392.2,0.2931]
[1732251346308,0.01,3392.2,3391.6,0.2931]
[1732251346605,0.4362891,3392.1,3391.6,0.2931]
[1732251346772,0.4362891,3392.0,3391.6,0.2931]
[1732251346973,0.4362891,3391.9,3391.2,0.2931]
[1732251347173,0.4362891,3391.8,3391.2,0.2931]
[1732251347382,0.4362891,3391.7,3391.2,0.2931]
[1732251347676,0.03685529,3391.9,3391.2,0.2931]
[1732251347677,0.4362891,3391.6,3391.2,0.2931]
[1732251347880,0.4362891,3391.8,3391.2,0.2931]
[1732251348088,0.4362891,3391.7,3391.2,0.2931]
[1732251348306,0.4362891,3391.6,3391.2,0.2931]
[1732251348607,0.4362891,3391.5,3391.2,0.2931]
[1732251348903,0.4362891,3391.8,3391.2,0.2931]
[1732251349196,0.4362891,3391.7,3391.2,0.2931]
[1732251349397,0.18384215,3391.8,3391.2,0.2931]
[1732251349398,0.4362891,3391.6,3391.2,0.2931]
[1732251349583,0.4362891,3391.5,3391.2,0.2931]
[1732251349901,0.18384215,3391.7,3391.2,0.2931]
[1732251349902,0.4362891,3391.4,3391.2,0.2931]
[1732251350077,0.4362891,3391.3,3391.2,0.2931]
[1732251351257,0.4362891,3391.3,3390.8,0.7915]
[1732251351258,0.62013125,3391.3,3390.9,0.2931]
[1732251351458,0.4362891,3391.2,3390.9,0.2931]
[1732251351665,0.4362891,3391.1,3390.9,0.2931]
[1732251352013,0.18384215,3391.4,3391.1,0.2931]
[1732251352166,0.43823611,3391.3,3391.1,0.2931]
[1732251352363,0.43823611,3391.2,3391.1,0.2931]
[1732251353201,0.43823611,3391.2,3390.9,0.2931]
[1732251353504,0.18384215,3391.6,3390.9,0.2931]
[1732251353505,0.43823611,3391.1,3390.9,0.2931]
[1732251353699,0.43619228,3391.0,3390.9,0.2931]
[1732251354086,0.27394615,3391.0,3390.9,0.2931]
[1732251354505,0.18388267,3391.6,3390.9,0.509215]
[1732251354802,0.18388267,3391.6,3391.1,0.2931]
[1732251355007,0.18388267,3392.2,3391.1,0.2931]
[1732251355221,0.18388267,3392.1,3391.1,0.2931]
[1732251355497,0.18388267,3392.0,3391.1,0.2931]
[1732251355804,0.22073832,3391.9,3390.9,0.2931]
[1732251356010,0.18388267,3391.8,3390.9,0.2931]
[1732251356174,0.18388267,3391.7,3390.9,0.2931]
[1732251356389,0.18388267,3391.6,3390.9,0.2931]
[1732251356707,0.18388267,3391.5,3390.9,0.2931]
[1732251356876,0.18388267,3391.4,3390.9,0.2931]
[1732251357073,0.18388267,3391.3,3390.9,0.2931]
[1732251357310,0.18388267,3391.2,3390.9,0.2931]
[1732251357599,0.18388267,3391.1,3390.9,0.2931]
[1732251357801,0.18388267,3391.7,3390.9,0.2931]
[1732251357961,0.22074247,3391.6,3390.9,0.2931]
[1732251358161,0.18388267,3391.5,3390.9,0.2931]
[1732251358366,0.18388267,3391.4,3390.9,0.2931]
[1732251358560,0.18388267,3391.3,3390.9,0.2931]
[1732251358761,0.18388267,3391.2,3390.9,0.2931]
[1732251358997,0.18388267,3391.1,3390.9,0.2931]
[1732251359202,0.18388267,3391.5,3390.9,0.2931]
[1732251359467,0.45776715,3391.3,3390.9,0.2931]
[1732251359690,0.18388267,3391.2,3390.9,0.2931]
[1732251359907,0.18388267,3391.1,3390.9,0.2931]
[1732251360202,0.18388267,3391.0,3390.9,0.2931]
[1732251360504,0.01,3391.4,3389.8,0.20635009]
[1732251360505,0.7984,3391.2,3389.9,0.2931]
[1732251360802,0.49471268,3391.1,3389.9,0.30791826]
[1732251360972,0.67862238,3391.1,3389.9,0.2931]
[1732251361166,0.6417584,3391.1,3389.9,0.2931]
[1732251361568,0.4578487,3391.1,3388.9,0.30792088]
[1732251361908,0.4578487,3391.1,3389.9,0.2931]
[1732251362077,0.03686528,3391.0,3389.9,0.2931]
[1732251362283,0.64341635,3391.0,3389.9,0.2931]
[1732251362476,0.79046077,3391.0,3389.9,0.2931]
[1732251362807,0.4579132,3391.0,3390.0,0.2931]
[1732251363001,0.4579132,3391.0,3389.1,0.01482091]
[1732251363002,0.18392455,3391.1,3390.2,0.2931]
[1732251363209,0.1839224,3391.1,3390.4,0.2931]
[1732251363393,0.45790785,3391.2,3390.4,0.2931]
[1732251363593,0.7984,3391.9,3390.4,0.2931]
[1732251363594,0.03686088,3391.1,3390.4,0.2931]
[1732251363795,0.43955642,3391.0,3390.4,0.2931]
[1732251364094,0.43955642,3390.9,3390.4,0.2931]
[1732251364265,0.64183025,3391.4,3389.0,0.55]
[1732251364266,0.47641977,3391.3,3390.6,0.2931]
[1732251364466,0.43955642,3391.2,3390.6,0.2931]
[1732251364667,0.43955642,3391.1,3390.6,0.2931]
[1732251364904,0.43955642,3391.0,3390.6,0.2931]
[1732251365202,0.43955642,3391.2,3390.6,0.2931]
[1732251365414,0.43955642,3391.1,3390.6,0.2931]
[1732251365572,0.43955642,3391.4,3390.6,0.2931]
[1732251365906,0.43955642,3391.3,3390.6,0.2931]
[1732251366109,0.43955642,3391.2,3390.6,0.2931]
[1732251366280,0.4395866,3391.1,3390.6,0.2931]
[1732251366607,0.71375158,3391.0,3390.6,0.2931]
[1732251366812,0.47644984,3391.3,3390.6,0.2931]
[1732251366969,0.4395866,3391.2,3390.6,0.2931]
[1732251367171,0.47644987,3391.1,3390.6,0.2931]
[1732251367367,0.4395866,3391.0,3390.6,0.2931]
[1732251367612,0.4495866,3391.0,3390.6,0.2931]
[1732251367771,0.4395866,3390.9,3390.6,0.2931]
[1732251368286,0.4395866,3391.1,3390.6,0.2931]
[1732251368487,0.7984,3391.2,3390.6,0.2931]
[1732251368488,0.47645303,3391.0,3390.6,0.2931]
[1732251368813,0.4395866,3391.1,3390.6,0.2931]
[1732251368993,0.4395866,3391.2,3390.6,0.2931]
[1732251369304,0.4395866,3391.1,3390.6,0.2931]
[1732251369510,0.4395866,3391.3,3390.6,0.2931]
[1732251369809,0.47637397,3391.2,3390.6,0.2931]
[1732251370174,0.43951059,3391.1,3390.6,0.2931]
[1732251370910,0.43951059,3391.0,3390.6,0.2931]
[1732251371111,0.04686338,3391.2,3390.6,0.2931]
[1732251371112,0.43951059,3391.1,3390.6,0.2931]
[1732251372172,0.04686338,3391.2,3390.6,0.2931]
[1732251372378,0.48637397,3391.2,3390.6,0.2931]
[1732251372877,0.43951059,3391.1,3390.6,0.2931]
[1732251373382,0.43951059,3391.0,3390.6,0.2931]
[1732251374210,0.43951059,3390.9,3390.6,0.2931]
[1732251374408,0.43951059,3391.0,3390.6,0.2931]
[1732251374600,0.43951059,3390.9,3390.6,0.2931]
[1732251374801,0.44951059,3391.0,3390.6,0.2931]
[1732251374996,0.43951059,3390.9,3390.6,0.2931]
[1732251375195,0.43951059,3390.8,3390.6,0.2931]
[1732251375511,0.43951059,3390.7,3390.6,0.2931]
[1732251375715,0.43951059,3390.9,3390.6,0.2931]
[1732251375881,0.43951059,3390.8,3390.6,0.2931]
[1732251376205,0.43951059,3390.7,3390.6,0.2931]
[1732251376414,0.43951059,3391.0,3390.6,0.2931]
[1732251376617,0.43951059,3390.9,3390.6,0.2931]
[1732251376778,0.4400027,3390.8,3390.6,0.2931]
[1732251376974,0.4400027,3390.7,3390.6,0.2931]
[1732251377173,0.45833614,3391.1,3390.6,0.2931]
[1732251377174,0.4400027,3391.0,3390.6,0.2931]
[1732251377375,0.4400027,3390.9,3390.6,0.2931]
[1732251377600,0.4400027,3390.8,3390.6,0.2931]
[1732251377805,0.01,3390.9,3390.6,0.2931]
[1732251378016,0.01,3391.1,3390.6,0.2931]
[1732251378017,0.4400027,3390.8,3390.6,0.2931]
[1732251378188,0.4400027,3391.0,3390.6,0.2931]
[1732251378388,0.4400027,3390.9,3390.6,0.2931]
[1732251378611,0.71505471,3390.8,3390.6,0.2931]
[1732251378818,0.27505201,3390.7,3390.6,0.2931]
[1732251380305,0.27510569,3390.7,3390.6,0.2931]
[1732251381686,0.7152748,3390.7,3390.6,0.2931]
[1732251381873,0.27510569,3390.7,3390.6,0.2931]
[1732251384194,0.02,3391.7,3390.6,0.2931]
[1732251384378,0.16467405,3391.5,3390.7,1.1228]
[1732251384575,0.71553152,3391.4,3390.8,0.8297]
[1732251384796,0.71553152,3391.3,3391.1,0.2931]
[1732251385005,0.27520443,3391.2,3391.1,0.2931]
[1732251385427,0.44032709,3391.9,3391.1,0.2931]
[1732251385612,0.72551333,3391.8,3391.1,0.2931]
[1732251385784,0.75237191,3391.7,3391.1,0.2931]
[1732251385980,0.71551333,3391.6,3391.1,0.2931]
[1732251386208,0.71551333,3391.5,3391.1,0.2931]
[1732251386480,0.01,3391.7,3391.1,0.2931]
[1732251386481,0.27518624,3391.4,3391.1,0.2931]
[1732251386688,0.27518624,3391.3,3391.1,0.2931]
[1732251386887,0.27518624,3391.2,3391.1,0.2931]
[1732251389222,0.27518624,3391.5,3391.1,0.2931]
[1732251389423,0.27518624,3391.4,3391.1,0.2931]
[1732251389586,0.44032709,3391.8,3391.1,0.30789923]
[1732251389786,0.01,3392.0,3391.1,0.30789923]
[1732251389787,0.27505401,3391.7,3391.1,0.30789923]
[1732251390141,0.44032709,3392.2,3391.4,0.2931]
[1732251390432,0.01,3392.6,3390.8,0.58988837]
[1732251390433,0.2748778,3392.1,3391.6,0.2931]
[1732251390649,0.2748778,3392.0,3391.6,0.2931]
[1732251390935,0.44032709,3392.5,3391.6,0.2931]
[1732251391152,0.27486585,3392.4,3391.7,0.01478457]
[1732251391426,0.44032709,3393.0,3392.1,0.2931]
[1732251391730,0.27465645,3392.9,3392.1,0.2931]
[1732251392036,0.27465645,3392.8,3392.1,0.4434788]
[1732251392185,0.27465645,3392.7,3392.1,0.4434788]
[1732251392390,0.27465645,3392.6,3392.1,0.4434788]
[1732251392590,0.02,3393.1,3392.1,0.4434788]
[1732251392806,0.27442301,3393.0,3392.1,0.4434788]
[1732251393025,0.27442301,3392.9,3392.1,0.4434788]
[1732251393210,0.27442301,3392.8,3392.1,0.4434788]
[1732251393414,0.01,3392.5,3392.1,0.2931]
[1732251393626,0.01,3392.5,3391.1,0.01477542]
[1732251393627,0.27442301,3392.4,3392.2,0.2931]
[1732251393830,0.28442301,3392.3,3392.2,0.2931]
[1732251393994,0.27442301,3392.3,3392.2,0.2931]
[1732251394191,0.28442301,3392.3,3392.2,0.2931]
[1732251394393,0.27442301,3392.3,3392.2,0.2931]
[1732251394730,0.81372301,3392.6,3391.8,0.2941]
[1732251394889,0.17493451,3392.5,3391.8,0.2941]
[1732251395290,0.03685142,3392.4,3391.8,0.2941]
[1732251395536,0.03684926,3392.5,3391.8,0.2941]
[1732251395695,0.85057432,3392.6,3391.8,0.2941]
[1732251396320,0.85057432,3392.6,3391.2,0.2941]
[1732251396321,0.01,3391.7,3391.2,0.2941]
[1732251396547,0.8133,3391.7,3391.2,0.2941]
[1732251396748,0.01,3391.6,3391.2,0.2941]
[1732251396962,0.04685825,3391.6,3391.2,0.2941]
[1732251397355,0.04685825,3391.6,3391.3,0.2941]
[1732251398417,0.04685825,3391.6,3390.5,0.8238]
[1732251398418,0.04685825,3391.6,3390.6,0.2941]
[1732251399025,0.04685825,3391.6,3390.8,0.2941]
[1732251400026,0.04685825,3391.6,3390.6,0.2941]
[1732251400823,0.01,3391.3,3390.6,0.2941]
[1732251401454,0.01,3391.1,3390.7,0.2941]
[1732251401665,0.04686663,3391.1,3390.7,0.2941]
[1732251401964,0.04686663,3391.1,3390.2,0.7859]
[1732251401965,0.04686663,3391.1,3390.2,0.7359]
[1732251402151,0.04686663,3391.1,3390.3,0.2941]
[1732251402923,0.01,3390.9,3390.4,0.2941]
[1732251403124,0.01,3390.6,3390.4,0.2941]
[1732251403353,0.04687159,3390.6,3390.4,0.2941]
[1732251403760,0.01,3390.6,3390.4,0.2941]
[1732251403975,0.01,3390.6,3389.1,0.2941]
[1732251404135,0.01,3390.6,3389.2,0.01483512]
[1732251405055,0.01,3390.6,3389.4,0.2941]
[1732251405431,0.04687245,3390.6,3389.4,0.2941]
[1732251406638,0.27417434,3390.5,3389.4,0.2941]
[1732251407851,0.27417434,3390.5,3389.4,0.30893977]
[1732251408052,0.27417434,3390.5,3389.6,0.2941]
[1732251408275,0.01,3390.6,3389.8,0.2941]
[1732251408480,0.27405669,3390.4,3389.8,0.2941]
[1732251408643,0.27405669,3390.3,3389.8,0.2941]
[1732251408843,0.01,3390.6,3389.8,0.2941]
[1732251409057,0.2740574,3390.5,3389.8,0.2941]
[1732251409253,0.2740574,3390.5,3389.6,0.2941]
[1732251410183,0.2740574,3390.5,3389.5,3.0]
[1732251410184,0.2740574,3390.5,3389.8,0.2941]
[1732251411239,0.2740574,3390.5,3389.4,0.30893977]
[1732251411654,0.03687217,3390.4,3389.4,0.2941]
[1732251411977,0.2740574,3390.3,3389.4,0.2941]
[1732251412181,0.2740574,3390.3,3389.0,0.20209606]
[1732251412182,0.7701,3390.1,3389.0,0.7647]
[1732251412386,0.01,3389.8,3389.0,0.7647]
[1732251412543,0.2740574,3389.7,3388.9,0.2941]
[1732251412883,0.03688184,3389.6,3388.9,0.2941]
[1732251413080,0.01,3389.8,3388.9,0.2941]
[1732251413379,0.27375788,3389.7,3388.9,0.2941]
[1732251413682,0.01,3389.8,3388.9,0.2941]
[1732251413878,0.27375504,3389.7,3388.9,0.2941]
[1732251414378,0.03688012,3389.6,3388.9,0.2941]
[1732251414580,0.7601,3389.5,3388.9,0.2941]
[1732251414822,0.7701,3389.8,3388.9,0.2941]
[1732251415080,0.27363332,3389.7,3388.9,0.2941]
[1732251415289,0.7701,3389.8,3388.9,0.2941]
[1732251415589,0.7701,3389.8,3389.1,0.2941]
[1732251415786,0.27355239,3389.7,3389.1,0.2941]
[1732251416486,0.03688038,3389.6,3388.9,0.2941]
[1732251416644,0.03688039,3389.6,3389.1,0.2941]
[1732251416838,0.7701,3389.8,3389.1,0.2941]
[1732251417379,0.0368804,3389.7,3389.1,0.2941]
[1732251417584,0.7701,3389.8,3388.9,0.2941]
[1732251417759,0.03688043,3389.7,3388.9,0.70927142]
[1732251418080,0.03688043,3389.7,3388.9,0.2941]
[1732251418281,0.7701,3389.8,3388.9,0.2941]
[1732251418453,0.01,3389.6,3388.9,0.2941]
[1732251419255,0.7571,3389.5,3388.5,0.2941]
[1732251419457,0.03688303,3389.4,3388.5,0.2941]
[1732251419972,0.03688303,3389.4,3387.6,0.005]
[1732251419973,0.7571,3388.2,3387.6,0.005]
[1732251420173,0.04688303,3389.4,3387.6,0.005]
[1732251420174,0.7571,3388.7,3387.6,0.005]
[1732251420490,0.7671,3388.7,3387.7,0.7804]
[1732251420658,0.27342349,3388.6,3387.8,0.2941]
[1732251420864,0.7671,3388.7,3387.8,0.2941]
[1732251421507,0.01,3388.5,3387.8,0.2941]
[1732251421799,0.01,3388.9,3387.9,0.01487424]
[1732251422000,0.7671,3389.1,3388.0,0.7804]
[1732251422366,0.01,3389.3,3388.1,0.30896854]
[1732251422523,0.01,3389.3,3388.2,0.70303685]
[1732251422678,0.01,3389.3,3388.2,0.2941]
[1732251423374,0.01,3388.8,3388.3,0.2941]
[1732251423831,0.01,3389.1,3388.3,0.2941]
[1732251423974,0.01,3388.9,3388.3,0.2941]
[1732251424178,0.01,3389.1,3388.3,0.2941]
[1732251424514,0.27367541,3389.0,3388.1,0.2941]
[1732251424689,0.23458316,3389.0,3388.1,0.2941]
[1732251424918,0.01,3389.1,3388.1,0.2941]
[1732251425718,0.7571,3388.4,3387.7,0.2941]
[1732251425914,0.01,3388.2,3387.6,0.005]
[1732251426124,0.01,3387.9,3387.6,0.005]
[1732251426331,0.01,3387.9,3387.6,0.7854]
[1732251426486,0.01,3388.3,3387.6,0.005]
[1732251426686,0.01,3387.9,3387.6,0.005]
[1732251427288,0.7671,3387.7,3387.6,0.005]
[1732251427617,0.7571,3387.7,3387.6,0.005]
[1732251427790,0.01,3387.9,3387.6,0.005]
[1732251427985,0.04690173,3387.9,3387.6,0.005]
[1732251428244,0.01,3387.7,3387.6,0.005]
[1732251428834,0.7671,3388.0,3387.6,0.005]
[1732251429138,0.01,3387.7,3387.6,0.005]
[1732251429427,1.3171,3387.7,3387.6,0.005]
[1732251429592,0.7671,3387.7,3387.6,0.005]
[1732251429983,1.3171,3387.7,3387.6,0.005]
[1732251431000,0.7671,3387.7,3387.6,0.005]
[1732251431244,0.01,3388.0,3387.6,0.005]
[1732251431932,0.04689928,3388.0,3387.6,0.005]
[1732251432231,0.03690244,3388.0,3387.6,0.005]
[1732251432388,0.04690239,3388.0,3387.6,0.005]
[1732251432589,0.00999995,3388.0,3387.6,0.005]
[1732251432922,0.04689748,3388.0,3387.6,0.005]
[1732251433227,0.00999995,3388.0,3387.6,0.005]
[1732251433843,0.0469003,3388.0,3387.6,0.005]
[1732251434203,0.00999995,3388.0,3387.6,0.005]
[1732251435158,0.00999995,3387.7,3387.6,0.005]
[1732251435446,0.04690594,3387.8,3387.6,0.005]
[1732251435603,0.03690599,3387.8,3387.6,0.005]
[1732251435803,0.8149,3387.9,3387.6,0.005]
[1732251436025,0.04690093,3387.8,3387.6,0.005]
[1732251436644,0.00999995,3387.8,3387.6,0.005]
[1732251437854,0.27360533,3387.7,3387.6,0.005]
[1732251438009,0.27360533,3387.7,3387.6,0.8218]
[1732251438209,0.8149,3388.3,3387.6,0.8218]
[1732251438210,0.00999995,3388.2,3387.6,0.8218]
[1732251438514,0.2736747,3388.1,3387.6,0.8218]
[1732251439037,0.03689762,3388.0,3387.6,0.8218]
[1732251439208,0.2736747,3387.9,3387.6,0.8218]
[1732251439737,0.2736747,3387.9,3387.6,0.005]
[1732251440104,0.04689757,3388.2,3387.6,0.005]
[1732251440304,0.27388264,3388.1,3387.6,0.005]
[1732251440547,0.03689763,3388.0,3387.6,0.005]
[1732251440747,0.27388264,3387.9,3387.6,0.005]
[1732251440951,0.00999995,3388.2,3387.6,0.005]
[1732251441171,0.27387708,3388.1,3387.6,0.005]
[1732251441368,0.31077807,3388.0,3387.6,0.005]
[1732251441672,0.27387708,3387.9,3387.6,0.005]
[1732251441841,0.03690098,3387.8,3387.6,0.005]
[1732251442038,0.27387708,3387.7,3387.6,0.005]
[1732251442255,0.32077801,3387.7,3387.6,0.005]
[1732251442457,1.13567801,3387.7,3387.6,0.005]
[1732251443567,1.2930095,3387.7,3387.6,0.005]
[1732251443970,0.00999995,3387.3,3387.2,0.1058554]
[1732251444174,0.28387703,3387.3,3387.2,0.1058554]
[1732251445269,0.28387703,3387.3,3387.2,0.0558554]
[1732251445452,0.28436555,3387.3,3387.2,0.0558554]
[1732251445835,1.09926555,3387.3,3387.2,0.0558554]
[1732251446168,1.83340095,3387.3,3387.2,0.0558554]
[1732251446386,2.29067695,3387.3,3387.2,0.0558554]
[1732251446531,1.35750891,3387.3,3387.2,0.0058554]
[1732251446732,1.79649387,3387.3,3387.2,0.0058554]
[1732251446955,1.83340095,3387.3,3387.2,0.0058554]
[1732251447573,1.83340095,3387.3,3387.1,3.005]
[1732251447574,1.56850095,3387.3,3387.1,2.34794172]
[1732251447779,2.24659065,3387.2,3387.1,2.34794172]
[1732251447962,2.24659065,3387.2,3387.1,2.05344172]
[1732251448172,1.53324009,3387.2,3387.1,2.05344172]
[1732251448334,2.24703142,3387.2,3387.1,2.05344172]
[1732251448690,1.53324009,3387.2,3387.1,2.05344172]
[1732251448901,2.24711279,3387.2,3387.1,2.05344172]
[1732251449194,1.69711279,3387.2,3387.1,2.05344172]
[1732251450387,1.07446642,3387.2,3387.1,2.05344172]
[1732251451821,1.97133776,3387.2,3387.1,2.05344172]
[1732251452095,1.07446642,3387.2,3387.1,2.05344172]
[1732251452252,1.55068068,3387.2,3387.1,2.05344172]
[1732251452461,1.07446642,3387.2,3387.1,2.05344172]
[1732251452649,1.66797584,3387.2,3387.1,2.05344172]
[1732251452853,2.12560741,3387.2,3387.1,2.05344172]
[1732251453172,1.07446642,3387.2,3387.1,2.05344172]
[1732251453492,0.27456642,3387.2,3387.1,2.05344172]
[1732251455396,0.7138727,3387.2,3387.1,2.05344172]
[1732251455606,0.27456642,3387.2,3387.1,2.05344172]
[1732251455905,0.00999995,3387.4,3387.1,2.05344172]
[1732251456100,0.27490769,3387.3,3387.1,2.05344172]
[1732251456311,0.27490769,3387.2,3387.1,2.05344172]
[1732251456514,0.27490769,3387.2,3387.1,2.34176589]
[1732251456717,0.27490769,3387.2,3387.1,2.05344172]
[1732251459010,0.27497318,3387.2,3387.1,2.05344172]
[1732251462101,15.24,3385.9,3383.1,3.79369103]
[1732251462333,15.24,3385.9,3382.6,6.86712734]
[1732251462334,0.01,3382.7,3382.6,4.24083906]
[1732251462530,0.01,3382.7,3381.6,0.09116361]
[1732251462531,0.00999995,3381.4,3378.9,0.439957]
[1732251462707,0.00999995,3380.6,3380.5,0.21794743]
[1732251463014,1.12387239,3380.6,3380.5,1.13548343]
[1732251463222,14.24623237,3380.6,3380.0,0.2941]
[1732251463372,14.24623237,3380.5,3380.0,0.2941]
[1732251463576,14.24623237,3380.4,3378.6,0.7586]
[1732251463796,21.34125818,3380.3,3378.7,0.01]
[1732251464127,21.34125818,3380.3,3380.2,0.7686]
[1732251464128,8.57126836,3380.3,3380.2,0.7686]
[1732251464331,0.3564071,3380.8,3380.7,0.01]
[1732251464533,9.15773176,3381.3,3381.2,0.01]
[1732251464736,7.52825859,3381.3,3381.2,0.2279]
[1732251465033,3.31045859,3381.3,3381.2,0.2279]
[1732251465204,2.61628255,3381.3,3381.2,0.2279]
[1732251465393,2.61628255,3381.3,3381.2,0.7779]
[1732251465728,4.0535981,3381.4,3381.2,0.7779]
[1732251466027,0.00999995,3383.1,3381.6,0.01]
[1732251466188,0.00999995,3382.7,3381.3,0.55]
[1732251467227,0.00999995,3383.0,3381.3,0.55]
[1732251467527,0.00999995,3382.7,3381.3,0.55]
[1732251468034,0.00999995,3382.5,3381.2,0.2179]
[1732251468191,0.00999995,3382.2,3380.5,0.7586]
[1732251469406,0.00999995,3382.2,3380.6,0.55]
[1732251470025,0.00999995,3382.2,3381.0,3.0]
[1732251470334,0.00999995,3381.8,3381.1,0.3]
[1732251470491,0.00999995,3381.6,3379.8,0.7686]
[1732251470693,0.00999995,3381.8,3379.8,0.7686]
[1732251470894,0.00999995,3381.5,3379.8,0.7686]
[1732251471205,0.04697032,3381.8,3379.8,0.7686]
[1732251471410,0.00999995,3381.5,3379.8,0.7686]
[1732251472242,0.00999995,3381.5,3379.8,0.7586]
[1732251472546,0.00999995,3381.1,3379.8,0.7586]
[1732251472847,0.00999995,3381.0,3379.8,0.7586]
[1732251473649,0.34641099,3381.8,3379.8,0.7586]
[1732251473650,0.00999995,3381.5,3379.8,0.7586]
[1732251473947,0.00999995,3381.6,3379.9,0.55]
[1732251474135,0.00999995,3381.3,3379.9,0.55]
[1732251474309,0.00999995,3381.3,3379.8,0.7586]
[1732251474512,0.00999995,3381.3,3379.9,0.55]
[1732251474846,0.00999995,3381.0,3379.5,0.62434773]
[1732251475030,0.7952,3381.2,3379.6,0.01]
[1732251475353,0.7952,3381.2,3379.7,0.01]
[1732251475566,0.00999995,3381.5,3380.2,3.0]
[1732251475844,0.00999995,3381.5,3380.3,0.3]
[1732251476050,0.83217041,3381.8,3379.9,0.55]
[1732251476051,0.00999995,3381.7,3379.9,0.55]
[1732251476208,0.7952,3381.8,3379.9,0.55]
[1732251476209,0.00999995,3381.5,3379.9,0.55]
[1732251476610,0.00999995,3381.7,3379.9,0.55]
[1732251477045,0.80519995,3381.8,3379.9,0.55]
[1732251477250,0.80519995,3381.8,3380.0,0.01]
[1732251477549,0.00999995,3381.5,3379.9,0.55]
[1732251477846,0.00999995,3381.5,3380.0,0.15135493]
[1732251478947,0.7952,3380.9,3380.0,0.15135493]
[1732251479158,0.00999995,3381.0,3379.7,0.7586]
[1732251479338,0.00999995,3381.0,3379.8,0.2941]
[1732251479717,0.00999995,3381.8,3379.8,0.2941]
[1732251480055,0.00999995,3381.8,3380.3,0.01]